Cogmind - Beta 15 @@@ ROGUE MODE // 2025.07.04 @ 19:46:38 Player: beans Result: Destroyed by TU-8TQ(R) with Subdweller Machine Gun Performance ------------- Evolutions (0) 0 Regions Visited (2) 400 Robots Destroyed (40) 200 Value Destroyed (996) 996 Prototype IDs (0) 0 Alien Tech Used (0) 0 Bonus (0) 0 TOTAL SCORE: 1596 Bonus ------- None Cogmind --------- Core Integrity 0/250 Matter 234/300 Energy 265/265 System Corruption 0% Temperature Cool (0) Movement Treading (160) Location -10/Subcaves Parts ------- > --- POWER (1) -------- Improved Ion Engine > --- PROPULSION (2) --- Light Treads Light Treads > --- UTILITY (2) ------ (None) > --- WEAPON (2) ------- Battle Rifle > --- INVENTORY (5) ---- Light Assault Rifle Peak State ------------ > --- POWER ------------ Improved Ion Engine > --- PROPULSION ------- Improved Treads Improved Treads > --- UTILITY ---------- Targeting Computer > --- WEAPON ----------- EMP Blaster EMP Blaster > --- INVENTORY -------- Light Treads Light Treads Light Assault Rifle Grenade Launcher [Rating: 11] Favorites ----------- Power Improved Ion Engine Engine Improved Ion Engine Propulsion Improved Treads Treads Improved Treads Leg Aluminum Leg Utility Targeting Computer Processor Targeting Computer Weapon EMP Blaster Ballistic Gun Light Assault Rifle Launcher EMP Blaster Build | -11 -10 -10 ------- Run | Yrd Mat Sub Slots Evolved . | . . . Power . | . . . Propulsion . | . . . Utility . | . . . Weapon . | . . . Parts Attached 14 | 2 9 3 Power 1 | . 1 . Engine 1 | . 1 . Core . | . . . Reactor . | . . . Propulsion 6 | . 4 2 Treads 4 | . 2 2 Leg 2 | . 2 . Wheel . | . . . Hover . | . . . Flight . | . . . Utility 1 | . 1 . Device . | . . . Storage . | . . . Processor 1 | . 1 . Hackware . | . . . Protection . | . . . Artifact . | . . . Weapon 6 | 2 3 1 Energy Gun . | . . . Energy Cannon . | . . . Ballistic Gun 3 | 2 . 1 Ballistic Cannon . | . . . Launcher 3 | . 3 . Special Weapon . | . . . Impact Weapon . | . . . Slashing Weapon . | . . . Piercing Weapon . | . . . Special Melee Weapon . | . . . Unidentified Prototypes . | . . . Parts Lost 6 | . . 6 Power . | . . . Propulsion 2 | . . 2 Utility 1 | . . 1 Weapon 3 | . . 3 Highest Loss Streak 2 | . . 2 To Critical Strikes . | . . . Average Backups 3 | 1 3 3 Power . | . . . Propulsion 1 | 1 2 1 Utility . | . . . Weapon 1 | . 1 1 Tool/Special . | . . . Unused Backups . | . . . Power . | . . . Propulsion . | . . . Utility . | . . . Weapon . | . . . Tool/Special . | . . . Average Slot Usage (%) 74 | . 66 77 Engine 12 | . 7 14 Treads 23 | . 15 25 Leg 2 | . 8 . Processor 9 | . 5 10 Ballistic Gun 2 | . 9 . Launcher 24 | . 17 26 Peak Build Rating 11 | 2 11 11 Average Rating 9 | 1 7 9 On Entrance 4 | . 2 11 Naked Turns . | . . . Heaviest Build 15 | 2 15 15 Greatest Support 46 | 3 46 46 Greatest Overweight (x) 3 | . . 3 Average Overweight (x) . | . . . Largest Inventory Capacity 5 | 5 5 5 Average Capacity 5 | 5 5 5 Most Carried 5 | 2 5 4 Average Carried 3 | 1 3 3 Final Capacity 5 | 5 5 5 Final Carried 4 | 2 4 1 Class Distribution -------------------- 100% | Mutant Dominant Class ---------------- Mutant | -10/Materials Mutant | -10/Subcaves Resources | -11 -10 -10 ----------- Run | Yrd Mat Sub Matter Collected 758 | 153 376 229 Remotely . | . . . Salvage Created 1185 | . 702 483 Parts 91 | . 53 38 Haulers Intercepted . | . . . Recyclers Shooed . | . . . Parts Field Recycled . | . . . Retrieved Matter . | . . . Parts Self-Destructed 13 | . . 13 Prevented 2 | . . 2 Kills | -11 -10 -10 ------- Run | Yrd Mat Sub Combat Hostiles Destroyed 28 | . 14 14 Guns 3 | . 3 . AOE 24 | . 10 14 Classes Destroyed 8 | . 6 2 Worker 3 | . 3 . Builder 5 | . 5 . Recycler 1 | . 1 . Watcher 3 | . 3 . Swarmer 9 | . 5 4 Grunt 9 | . 9 . Sentry 1 | . . 1 Subdweller 9 | . . 9 Best Kill Streak 8 | . 8 6 Combat Bots Only 6 | . 6 6 Max Kills in Single Turn 4 | . 4 4 Gunslinging . | . . . Exploded 4 | . 2 4 Melee . | . . . Uniques/NPCs Destroyed . | . . . Combat | -11 -10 -10 -------- Run | Yrd Mat Sub Hostile Shots Fired 127 | . 58 69 Missed 48 | . 23 25 Hits 79 | . 35 44 Projectile 79 | . 35 44 Damage Taken 1076 | . 415 661 Core 251 | . 133 118 Absorbed by Shields . | . . . Core Remaining (%) 100 | 100 . . Volleys Fired 71 | . 39 32 Largest 2 | . 2 2 Hottest 66 | . 66 66 Shots Fired 126 | . 77 49 Gun 52 | . 45 7 Cannon . | . . . Launcher 74 | . 32 42 Special . | . . . Kinetic 52 | . 45 7 Thermal . | . . . Explosive 22 | . 6 16 Electromagnetic 52 | . 26 26 Robot Hit Streak 8 | . 8 8 Robot Miss Streak 5 | . 5 2 Penetration Max . | . . . Secondary Targets . | . . . Shots Hit Robots 51 | . 29 22 Core Hits 59 | . 33 26 Critical Kills . | . . . Critical Parts Destroyed . | . . . Critical Strikes . | . . . Melee Attacks . | . . . Impact . | . . . Slashing . | . . . Piercing . | . . . Sneak Attacks . | . . . Combat Hostiles . | . . . Follow-up Attacks . | . . . Damage Inflicted 2660 | . 1376 1284 Guns 320 | . 227 93 Cannons . | . . . Explosions 2340 | . 1149 1191 Melee . | . . . Ramming . | . . . Kinetic 320 | . 227 93 Thermal 143 | . 79 64 Explosive 1017 | . 451 566 Electromagnetic 1180 | . 619 561 Impact . | . . . Slashing . | . . . Piercing . | . . . Highest Corruption . | . . . Average Corruption . | . . . Corruption Purged . | . . . Corruption Blocked . | . . . Overload Shots . | . . . Overflow Damage 67 | . 63 4 Projectiles . | . . . Explosions 67 | . 63 4 Melee . | . . . Knockbacks . | . . . Impact . | . . . Kinetic . | . . . Secondary . | . . . Self-Inflicted Damage 125 | . 43 82 Shots 5 | . 1 4 Rammed . | . . . Targets Rammed . | . . . Kicked . | . . . Crushed . | . . . Highest Temperature 45 | . 45 . Average Temperature 8 | . 8 . Received Heat Transfer 309 | . 192 117 Siege Activations . | . . . Martial Activations . | . . . Shielding Activations . | . . . Robots Disrupted . | . . . Combat Hostiles . | . . . Robots Corrupted 1 | . 1 . Combat Hostiles 1 | . 1 . Parts Fried 8 | . 3 5 Impact Corruptions . | . . . Robots Melted . | . . . Combat Hostiles . | . . . Parts Melted . | . . . Heat Transferred 300 | . 150 150 Parts Sabotaged . | . . . Parts Stolen . | . . . Parts Stripped . | . . . Power Chain Reactions 6 | . 3 3 Alert | -11 -10 -10 ------- Run | Yrd Mat Sub Maximum Alert Level 1 | . 1 . Low Security (%) 51 | 100 49 . Level 1 48 | . 50 . Level 2 . | . . . Level 3 . | . . . Level 4 . | . . . Level 5 . | . . . High Security . | . . . Max Security . | . . . Peak Influence 380 | . 380 . Initial . | . . . Average 170 | . 176 . Influence Increases 961 | . 651 310 Destroy 0b10 Robot/C 380 | . 280 100 Destroy 0b10 Robot/NC 60 | . 60 . Destroy Leader 56 | . 56 . Disable Machine 150 | . 150 . Destroy Structure 105 | . 105 . Lose Combat Pursuer 210 | . . 210 Influence Decreases 784 | . 287 497 Entered New Map 176 | . . 176 Time Decay 568 | . 287 281 Lost Part 40 | . . 40 Squads Dispatched 5 | . 5 . Investigation 4 | . 4 . Extermination . | . . . Reinforcement 1 | . 1 . Assault . | . . . Garrison . | . . . Intercept . | . . . Searches Triggered . | . . . Construction Impeded . | . . . Haulers Reinforced . | . . . Active Scanning Responses . | . . . Cargo Convoy Interrupts . | . . . Stealth | -11 -10 -10 --------- Run | Yrd Mat Sub Distress Signals 2 | . 2 . Communications Jammed . | . . . Distress Signals . | . . . Times Spotted 34 | . 18 16 Peak Tracking Total 6 | . 5 6 Tactical Retreats 3 | . . 3 Traps | -11 -10 -10 ------- Run | Yrd Mat Sub Traps Triggered 3 | . 3 . Indirectly 1 | . 1 . Trap Hack Attempts . | . . . Triggered . | . . . Disarmed . | . . . Reprogrammed . | . . . Reused . | . . . Traps Extracted . | . . . Installed . | . . . Triggered . | . . . Machines | -11 -10 -10 ---------- Run | Yrd Mat Sub Machines Disabled 13 | . 10 3 Max in Single Turn 3 | . 2 3 Machines Repaired . | . . . Machines Dismantled . | . . . Machines Sabotaged . | . . . Overloaded Fab Kills . | . . . Hacking | -11 -10 -10 --------- Run | Yrd Mat Sub Machines Accessed 1 | . . 1 Terminals . | . . . Fabricators . | . . . Repair Stations . | . . . Recycling Units . | . . . Scanalyzers . | . . . Garrison Access . | . . . Total Hacks 3 | . . 3 Successful 3 | . . 3 Failed . | . . . Catastrophic . | . . . Database Lockouts . | . . . Manual . | . . . Terminals . | . . . Fabricators . | . . . Repair Stations . | . . . Recycling Units . | . . . Scanalyzers . | . . . Garrison Access . | . . . Terminal Hacks 3 | . . 3 Record 3 | . . 3 Fabricator Hacks . | . . . Repair Station Hacks . | . . . Recycling Unit Hacks . | . . . Scanalyzer . | . . . Garrison Access Hacks . | . . . Unauthorized Hacks . | . . . Terminals . | . . . Fabricators . | . . . Repair Stations . | . . . Recycling Units . | . . . Scanalyzers . | . . . Garrison Access . | . . . Data Cores Recovered . | . . . Used . | . . . Hacking Detections . | . . . Full Trace Events . | . . . Feedback Events . | . . . Feedback Blocked . | . . . Robot Schematics Acquired . | . . . Robots Built . | . . . Authchips . | . . . Time . | . . . Total Robot Build Rating . | . . . Part Schematics Acquired . | . . . Parts Built . | . . . Authchips . | . . . Time . | . . . Total Part Build Rating . | . . . Parts Repaired . | . . . Time . | . . . Parts Recycled . | . . . Recycled Matter . | . . . Retrieved Matter . | . . . Retrieved Components . | . . . Parts Scanalyzed . | . . . Part Schematics Acquired . | . . . Parts Damaged . | . . . Bothacking | -11 -10 -10 ------------ Run | Yrd Mat Sub Used RIF Installer . | . . . Robots Hacked . | . . . Non-combat . | . . . Combat . | . . . Robot Hacks Applied . | . . . Relay Couplers Released . | . . . Fabnet Peak Effective % . | . . . Robots Rewired . | . . . Allies Hacked . | . . . Hacks Repelled . | . . . Allies | -11 -10 -10 -------- Run | Yrd Mat Sub Total Allies . | . . . Largest Group . | . . . Highest-Rated Group . | . . . Highest-Rated Ally . | . . . Total Orders . | . . . Ally Attacks . | . . . Total Damage . | . . . Kills . | . . . Allies Corrupted . | . . . Allies Melted . | . . . Intel | -11 -10 -10 ------- Run | Yrd Mat Sub Active Infowar (turns) . | . . . Robot Analysis Total . | . . . Derelict Logs Recovered . | . . . Drone Launches . | . . . Drone Recoveries . | . . . Exploration | -11 -10 -10 ------------- Run | Yrd Mat Sub Turns Passed 2842 | 22 661 2159 Spaces Moved 1684 | 32 390 1262 Core 111 | 32 67 12 Treads 1427 | . 177 1250 Legs 146 | . 146 . Wheels . | . . . Hover . | . . . Flight . | . . . Fastest Speed 50 | 50 50 160 Average Speed 150 | 50 126 160 Slowest Speed 200 | 50 160 200 Overloaded Moves . | . . . Propulsion Burnouts . | . . . Robots Hopped . | . . . Potential Cave-ins . | . . . Cave-ins Triggered . | . . . Exploration Rate (%) 43 | 3 72 55 Regions Visited 2 Branch Regions 1 Pre-discovered Areas . | . . . Known Exits Taken . | . . . Unknown Exits Taken 2 | 1 1 . Scrap Searched . | . . . Spaces Dug 11 | . . 11 Terrain Destroyed 215 | . 121 94 Melee . | . . . Projectile . | . . . AOE 215 | . 121 94 Terrain Rammed . | . . . Walls Destroyed . | . . . Machines Disabled . | . . . Actions | -11 -10 -10 --------- Run | Yrd Mat Sub Total 1877 | 37 491 1349 Wait 90 | . 40 50 Move 1682 | 31 389 1262 Hop . | . . . Pick Up 13 | 4 8 1 Fast Attach 1 | . 1 . Attach 11 | 2 5 4 Detach 2 | . 2 . Swap 4 | . 4 . Drop 3 | . 3 . Fire 71 | . 39 32 Melee . | . . . Ram . | . . . Kick . | . . . Crush . | . . . Escape Stasis . | . . . Rewire . | . . . Trap . | . . . Miscellaneous . | . . . Route ------- -11/Scrapyard -10/Materials (discovered 4 exits: [*Mat] / [*Min x2] / *Sub) -10/Subcaves (discovered 1 exit: [*Mat]) History --------- Turn | Location | Event 4 | -11/Scrapyard | Discovered new exit (range 15) 23 | -11/Scrapyard | Entered Materials 161 | -10/Materials | Discovered new exit (range 15) 277 | -10/Materials | Discovered new exit (range 13) 358 | -10/Materials | Build established: Mutant 564 | -10/Materials | Core integrity fell below 50% 631 | -10/Materials | Discovered new exit (range 7) 673 | -10/Materials | Discovered new exit (range 7) 684 | -10/Materials | Entered Subcaves 685 | -10/Subcaves | Approached by a straggling Scientist 808 | -10/Subcaves | Visited Clippyterm 812 | -10/Subcaves | Learned Factory garrison access intel 1060 | -10/Subcaves | Discovered new exit (range 4) 2352 | -10/Subcaves | A swath of the cavern ceiling suddenly collapsed 2563 | -10/Subcaves | Shifting Twisted Machinery released Battle Rifle 2581 | -10/Subcaves | Shifting Twisted Machinery released Piercing Trap 2620 | -10/Subcaves | A swath of the cavern ceiling suddenly collapsed 2657 | -10/Subcaves | Ambushed by Subdwellers from Twisted Machinery 2661 | -10/Subcaves | Core integrity fell below 20% 2843 | -10/Subcaves | Destroyed by TU-8TQ(R) with Subdweller Machine Gun Last Messages --------------- Piercing Trap falls loose from the Twisted Machinery. Acquired Battle Rifle. A swath of the cavern ceiling suddenly collapses. YT-8Q1(R) emerges from the Twisted Machinery. EMP Blaster destroyed. YT-8Q1(R) destroyed. KQ-Z1V(R) destroyed. Subatomizers dissect the Disposable Heat Sink. Acquired 39 matter. Acquired 33 matter. Subatomizers dissect the Disposable Heat Sink. Acquired 16 matter. Imp. Treads destroyed. DA-6EO(R) destroyed. Acquired 25 matter. The unstable cave ceiling collapses. Grenade Launcher destroyed. Map ----- +----------------------------------------------------+ | | | | | | | | | | | | | | | ?????????????????????????????????????????????????? | | ?????????????????????????????????????????????????? | | ?????????????????????????????????????????????????? | | ?????????????????????????????????????????????????? | | ?????????????????????????????????????????????????? | | ?????????????????????????????????????????????????? | | ?????????????????????????????????????????????????? | | ?????????????????????????????????????????????????? | | ?????????????????????????????????????????????????? | | ?????????????????????????????????????????????????? | | ?????????????????????????????????????????????????? | | ?????????????????????????????????????????????????? | | ?????????????????????????????????????????????????? | | ?????????????#####???????????????????????????????? | | ????????###### # #########????????###????????????? | | ??????### # # # ## ###?????## #????????????? | | ??????# &*!! #?????# ##???????????? | | ??????## &% "" # ### ##??????????? | | ???????# # &!=""## @ ##?????????? | | ?????# # ### ######## #?????????? | | ?????# #######?????# " R ##?????????? | | ?????## # ##?????????#"""" " ##?????????? | | ????### # ###########""""" ""# ##????????? | | ????# # # ## " ####""## "## ##???????? | | ????##### ######### "### #???????? | | ????????# """####### "## #???????? | | ????????### # " ## # ##???????? | | ??????????## ##### # ["& ##????????? | | ??????????# ##???# & ! ##????????? | | ?????????# ????## ## &[& #????????? | | ????????# " ##????###"##### #????????? | | ????????# """ #???????###???# #????????? | | ????????##""###?????????????## #????????? | | ?????????#""?????????????????## ### #????????? | | ???????????"?????????????????# #??# #???????? | | ??????????????????###????????# ###? ??????? | | ?????????????????##"#????????# ### ????? | | ?????????????##?##""####???### #?# ???? | | ???????????""# ## ""##"#??## #?? #??? | | ???????????" """ """""#?## ##??? #??? | | ????????????"""" " ### ## ?? #??? | | ??????????????#" " #??# | | ?????????????##" ## ?# | +----------------------------------------------------+ Best States ------------- Heat Dissipation 25 Energy Generation 12 Energy Capacity 265 Matter Stores 300 Matter Capacity 300 Sight Range 16 Terrain Scan Density 10 Evasion (%) 55 Targeting Accuracy 5 Recoil Reduction 2 Item Schematics ----------------- None Robot Schematics ------------------ None Fabricated ------------ Nothing Repaired ---------- Nothing Alien Tech Used ----------------- None Achievements -------------- None Challenges ------------ None Game ------ Seed PortableShockPlatform Manual? 0 Play Time 00:15:38 Cumulative 38.6 hours Start 2025.07.04 @ 19:34:38 End 2025.07.04 @ 19:46:38 Sessions 1 Manual Loads 0 Difficulty Rogue Special Mode None Game No. 182 Rogue 182 Adventurer 0 Explorer 0 Win Type - Total 0 Types 0/0/0/0/0/0/0/0/0/0 Lore% 28 Gallery% 24 Achievement% 20 Wizard Run 0 Options --------- Layout 2 ASCII 0 Keyboard 0 Movement Mouse Keybinds 0 Fullscreen 1 Font 24/Smallcaps Map View 50x44 Zoom Use 0% Tactical HUD 0 Map Filters NONE Filters NONE Steam 1 RUN: ec468015-b47c-4bdc-a6cb-edae56fa05d3